bitfinex/quotes_SOLUSD_20220211
["timestamp","ask_amount","ask_price","bid_price","bid_amount"]
[1644603509468,4.74,105.49,105.44,4.741]
[1644603511572,4.74,105.49,105.44,4.991]
[1644603511771,22.713,105.5,105.45,34.6643872]
[1644603511972,22.713,105.5,105.45,34.6883872]
[1644603512177,28.0856,105.52,105.45,34.6883872]
[1644603512373,4.74,105.52,105.46,4.764]
[1644603512573,62.7129087,105.55,105.46,4.764]
[1644603512574,13.65,105.55,105.46,4.764]
[1644603512774,4.739,105.54,105.47,6.024]
[1644603513075,18.47079804,105.56,105.48,43.80507175]
[1644603513275,14.2224,105.55,105.48,44.05507175]
[1644603513477,4.738,105.54,105.48,44.05507175]
[1644603513875,4.738,105.54,105.48,43.80507175]
[1644603514076,4.84418618,105.54,105.47,6.024]
[1644603514275,4.739,105.53,105.47,14.2459]
[1644603515677,4.739,105.53,105.48,45.9744896]
[1644603516677,4.739,105.56,105.49,6.0]
[1644603516878,4.738,105.57,105.5,49.94629268]
[1644603517076,37.2825,105.61,105.5,49.94629268]
[1644603517077,4.737,105.58,105.5,49.94629268]
[1644603517284,22.7526,105.61,105.51,6.0]
[1644603517478,22.7526,105.61,105.52,4.736]
[1644603517679,18.9493,105.6,105.52,14.2137]
[1644603517880,18.9493,105.6,105.53,6.0]
[1644603518082,18.9493,105.6,105.54,38.13475148]
[1644603518284,18.9493,105.6,105.54,38.38475148]
[1644603518481,4.736,105.6,105.54,38.38475148]
[1644603519082,4.736,105.6,105.54,52.59695148]
[1644603519482,42.73257163,105.63,105.55,4.736]
[1644603519682,4.735,105.62,105.56,45.68834271]
[1644603520285,18.9452,105.62,105.56,45.68834271]
[1644603520884,18.9452,105.62,105.56,45.93834271]
[1644603521386,18.9452,105.62,105.56,45.68834271]
[1644603521585,18.9452,105.62,105.56,45.93834271]
[1644603521786,18.9452,105.62,105.56,45.68834271]
[1644603522006,18.9452,105.62,105.56,45.93834271]
[1644603522209,4.735,105.62,105.56,60.14764271]
[1644603522415,0.04128496,105.63,105.57,4.735]
[1644603522612,0.04128496,105.63,105.57,10.735]
[1644603522809,0.04128496,105.64,105.58,45.82004973]
[1644603523006,0.04128496,105.63,105.58,45.82004973]
[1644603523206,4.77628496,105.65,105.58,46.07004973]
[1644603524810,18.98288496,105.65,105.58,60.27574973]
[1644603525211,0.04128496,105.65,105.59,4.734]
[1644603525611,0.04128496,105.65,105.59,4.984]
[1644603525812,0.04128496,105.65,105.6,14.2033]
[1644603526310,0.04128496,105.65,105.61,47.87134696]
[1644603526610,18.98058496,105.67,105.61,52.60434696]
[1644603526814,0.04128496,105.66,105.61,52.60434696]
[1644603527011,18.98058496,105.67,105.61,52.60434696]
[1644603527211,4.77528496,105.67,105.61,67.05624696]
[1644603527410,0.04128496,105.67,105.61,67.05624696]
[1644603527614,4.733,105.66,105.61,62.32324696]
[1644603527811,4.77328496,105.67,105.61,62.32324696]
[1644603528011,4.77328496,105.68,105.61,62.07324696]
[1644603528313,4.77328496,105.68,105.61,62.32324696]
[1644603532315,0.04128496,105.68,105.62,24.9317]
[1644603532515,4.77328496,105.7,105.62,20.1997]
[1644603532715,49.72576791,105.71,105.62,20.1997]
[1644603532716,0.04128496,105.68,105.63,4.732]
[1644603532916,0.04128496,105.7,105.64,45.180391]
[1644603533114,0.04128496,105.68,105.64,45.180391]
[1644603533314,0.04128496,105.69,105.64,45.430391]
[1644603533814,4.731,105.69,105.64,45.430391]
[1644603534016,4.77228496,105.69,105.64,45.430391]
[1644603534413,0.04128496,105.69,105.64,45.430391]
[1644603534615,4.731,105.7,105.64,45.430391]
[1644603534814,0.04128496,105.69,105.64,45.430391]
[1644603535013,0.04128496,105.7,105.64,45.430391]
[1644603535215,4.731,105.69,105.64,45.430391]
[1644603535414,0.04128496,105.69,105.64,45.430391]
[1644603535618,4.731,105.7,105.64,45.430391]
[1644603535816,2.42495287,105.71,105.64,59.627891]
[1644603536015,0.04128496,105.71,105.65,10.731]
[1644603536314,7.11466791,105.73,105.65,10.981]
[1644603536315,0.04128496,105.72,105.65,10.981]
[1644603536714,0.04128496,105.72,105.66,44.04002901]
[1644603536914,4.73,105.71,105.66,58.23422901]
[1644603537117,4.77128496,105.72,105.66,58.48422901]
[1644603537316,0.04128496,105.72,105.66,58.48422901]
[1644603537616,4.73,105.71,105.66,58.48422901]
[1644603538018,0.04128496,105.72,105.66,44.29002901]
[1644603538218,4.73,105.71,105.66,44.29002901]
[1644603538617,0.04128496,105.72,105.66,44.29002901]
[1644603538817,14.23728496,105.73,105.66,44.29002901]
[1644603539016,4.77128496,105.72,105.66,44.29002901]
[1644603539220,4.73,105.72,105.66,44.29002901]
[1644603539417,4.77128496,105.72,105.66,44.29002901]
[1644603540320,18.96858496,105.72,105.66,44.29002901]
[1644603540921,18.96858496,105.72,105.66,44.04002901]
[1644603541525,4.77128496,105.72,105.66,58.23492901]
[1644603541723,4.77128496,105.72,105.67,10.73]
[1644603541724,0.04128496,105.72,105.67,10.73]
[1644603541921,0.04128496,105.73,105.67,10.73]
[1644603542121,0.04128496,105.74,105.67,34.7644]
[1644603542522,0.04128496,105.74,105.68,38.7554727]
[1644603542722,4.77128496,105.75,105.68,39.0054727]
[1644603543326,4.77128496,105.75,105.68,38.7554727]
[1644603544324,7.15495287,105.75,105.68,38.7554727]
[1644603544724,16.61805287,105.75,105.68,38.7554727]
[1644603545123,4.729,105.74,105.68,38.7554727]
[1644603545727,4.729,105.74,105.68,39.0054727]
[1644603546127,4.729,105.74,105.68,38.7554727]
[1644603546727,4.729,105.74,105.68,53.1978727]
[1644603546929,14.23438496,105.75,105.69,4.729]
[1644603547133,4.729,105.74,105.7,44.20927792]
[1644603547327,4.729,105.74,105.7,44.45927792]
[1644603548228,0.04128496,105.75,105.7,44.45927792]
[1644603548430,18.96168496,105.76,105.7,44.45927792]
[1644603548628,21.34535287,105.76,105.7,44.20927792]
[1644603549630,18.96168496,105.76,105.7,44.45927792]
[1644603549829,21.34535287,105.76,105.7,44.45927792]
[1644603553238,16.61635287,105.76,105.7,49.18827792]
[1644603553439,14.23268496,105.76,105.7,49.18827792]
[1644603553743,14.23268496,105.76,105.7,63.37837792]
[1644603554142,0.04128496,105.76,105.7,63.37837792]
[1644603555341,0.04128496,105.76,105.7,120.00837792]
[1644603555539,0.04128496,105.76,105.71,65.01366791]
[1644603555763,0.04128496,105.79,105.72,43.0456]
[1644603555939,0.04128496,105.78,105.72,43.0456]
[1644603556141,0.04128496,105.79,105.74,38.18978253]
[1644603556346,0.04128496,105.78,105.75,10.727]
[1644603556544,0.04128496,105.81,105.76,48.94420519]
[1644603556743,0.04128496,105.82,105.77,10.725]
[1644603556945,0.04128496,105.83,105.77,19.939]
[1644603557143,0.04128496,105.84,105.77,76.819]
[1644603557547,0.04128496,105.84,105.78,36.18183886]
[1644603557745,0.04128496,105.85,105.79,6.0]
[1644603557946,14.1765,105.87,105.8,57.68161211]
[1644603558143,4.724,105.86,105.8,119.03561211]
[1644603558346,2.38366791,105.91,105.8,119.03561211]
[1644603558347,4.724,105.92,105.83,52.0]
[1644603558646,4.723,105.93,105.84,61.352]
[1644603558847,4.722,105.91,105.84,62.88]
[1644603559044,18.11751015,105.91,105.85,18.8898]
[1644603559244,4.722,105.9,105.85,45.35878723]
[1644603560043,44.41584327,105.93,105.85,45.35878723]
[1644603560244,44.41584327,105.93,105.85,45.60878723]
[1644603560445,31.22400731,105.93,105.85,45.35878723]
[1644603560644,46.61879357,105.93,105.85,45.35878723]
[1644603560845,4.721,105.92,105.85,45.35878723]
[1644603561046,18.371,105.92,105.85,45.35878723]
[1644603561249,2.38366791,105.91,105.85,45.35878723]
[1644603561453,4.722,105.9,105.85,45.35878723]
[1644603561645,18.8954,105.9,105.81,18.8945]
[1644603561847,2.38366791,105.89,105.78,4.723]
[1644603562052,4.724,105.88,105.76,4.724]
[1644603562246,13.65,105.87,105.75,56.63]
[1644603562446,4.725,105.86,105.75,56.63]
[1644603562646,17.10009035,105.86,105.76,42.77222882]
[1644603562846,7.10866791,105.87,105.76,42.77222882]
[1644603563048,4.725,105.87,105.78,56.63]
[1644603563271,53.7204,105.89,105.79,81.004]
[1644603563449,48.9954,105.89,105.79,81.004]
[1644603563647,48.9954,105.89,105.79,81.254]
[1644603563847,48.9954,105.89,105.8,35.69994998]
[1644603564049,4.724,105.88,105.8,35.69994998]
[1644603564248,4.724,105.88,105.82,46.87099018]
[1644603564650,2.38366791,105.9,105.82,51.84399018]
[1644603564849,4.723,105.88,105.82,47.12099018]
[1644603565048,14.1743,105.9,105.83,4.723]
[1644603565250,4.723,105.89,105.83,4.973]
[1644603565650,4.723,105.91,105.83,4.973]
[1644603565857,4.723,105.91,105.84,36.56083068]
[1644603566252,7.10666791,105.91,105.84,36.56083068]
[1644603566452,2.38366791,105.91,105.84,36.56083068]
[1644603566655,4.722,105.9,105.84,36.56083068]
[1644603567159,7.10566791,105.93,105.85,56.63]
[1644603567359,4.722,105.93,105.85,62.63]
[1644603567662,24.1572,105.96,105.86,61.351]
[1644603567859,24.1572,105.96,105.87,6.0]
[1644603568059,21.27056791,105.95,105.88,37.7377693]
[1644603568261,21.27056791,105.95,105.88,37.9877693]
[1644603568866,18.8869,105.95,105.88,37.9877693]
[1644603569267,4.72,105.95,105.88,37.9877693]
[1644603569462,4.72,105.95,105.88,37.7377693]
[1644603569866,4.72,105.95,105.88,37.9877693]
[1644603570166,5.09955698,105.95,105.88,37.7377693]
[1644603570370,4.72,105.95,105.88,37.7377693]
[1644603570785,7.10366791,105.95,105.88,37.7377693]
[1644603571077,4.72,105.95,105.88,37.7377693]
[1644603571281,4.72,105.95,105.88,37.9877693]
[1644603572478,4.72,105.95,105.88,52.1512693]
[1644603572678,4.72,105.96,105.9,45.74404958]
[1644603573278,4.72,105.97,105.91,10.72]
[1644603573478,0.04086703,105.96,105.91,10.72]
[1644603573678,0.47406504,105.98,105.91,10.72]
[1644603573679,0.04086703,105.97,105.91,10.97]
[1644603573878,0.51493207,105.98,105.91,10.97]
[1644603574078,0.04086703,105.97,105.85,4.719]
[1644603574278,7.14353494,105.97,105.85,18.369]
[1644603574678,16.48814335,105.97,105.85,18.369]
[1644603574877,30.70011871,105.97,105.85,18.369]
[1644603575079,30.70011871,105.97,105.86,39.38876989]
[1644603575478,14.1693,105.94,105.86,39.38876989]
[1644603575679,4.26186703,105.93,105.86,39.63876989]
[1644603575878,4.30286368,105.93,105.86,39.63876989]
[1644603576079,4.30286368,105.93,105.83,79.4409]
[1644603576277,0.04099665,105.92,105.84,10.722]
[1644603576478,4.722,105.91,105.84,10.722]
[1644603576878,0.04099665,105.91,105.84,10.722]
[1644603577080,4.76299665,105.93,105.85,46.18339888]
[1644603577279,4.76299665,105.91,105.85,46.18339888]
[1644603577579,4.722,105.91,105.85,46.43339888]
[1644603577778,0.04099665,105.91,105.85,51.15539888]
[1644603577978,4.76299665,105.93,105.85,51.15539888]
[1644603578180,0.04099665,105.92,105.85,51.15539888]
[1644603578980,0.04099665,105.92,105.85,4.972]
[1644603580082,4.722,105.91,105.85,42.9018819]
[1644603580282,4.76299665,105.91,105.85,42.9018819]
[1644603580483,0.04099665,105.91,105.85,42.9018819]
[1644603580683,4.722,105.9,105.85,42.9018819]
[1644603580984,4.76299665,105.91,105.85,42.9018819]
[1644603581183,4.76199665,105.92,105.85,42.9018819]
[1644603581386,0.04099665,105.91,105.85,42.9018819]
[1644603581586,4.722,105.9,105.85,0.25]
[1644603581786,4.722,105.9,105.83,4.972]
[1644603581985,4.722,105.9,105.82,14.1677]
[1644603581986,0.04099665,105.9,105.81,4.722]
[1644603582187,4.76399665,105.89,105.83,6.0]
[1644603582386,0.04099665,105.9,105.82,6.0]
[1644603582586,0.04099665,105.88,105.82,50.80513276]
[1644603582786,0.04099665,105.89,105.84,44.8338183]
[1644603582989,2.38366791,105.92,105.84,44.8338183]
[1644603582990,0.04099665,105.88,105.84,44.8338183]
[1644603583186,0.04099665,105.91,105.84,45.0838183]
[1644603583787,0.04099665,105.91,105.84,44.8338183]
[1644603584188,0.04099665,105.91,105.83,4.722]
[1644603584691,14.21319665,105.91,105.83,4.722]
[1644603584890,4.722,105.9,105.83,4.722]
[1644603585092,18.372,105.9,105.83,4.722]
[1644603585490,20.75566791,105.9,105.83,4.722]
[1644603585692,34.92976791,105.9,105.83,45.89630781]
[1644603585893,34.92976791,105.9,105.83,41.17430781]
[1644603590097,32.5461,105.9,105.83,41.17430781]
[1644603591699,18.93479665,105.91,105.83,41.42430781]
[1644603591900,18.8938,105.91,105.83,41.42430781]
[1644603592099,0.04099665,105.9,105.83,46.14630781]
[1644603593799,0.04099665,105.9,105.83,45.89630781]
[1644603594399,4.722,105.89,105.83,45.89630781]
[1644603594801,0.04099665,105.89,105.83,45.89630781]
[1644603595001,4.723,105.88,105.83,41.17430781]
[1644603595202,4.76299665,105.89,105.83,41.42430781]
[1644603595400,0.04099665,105.88,105.83,41.42430781]
[1644603595605,0.04099665,105.9,105.83,41.42430781]
[1644603595800,4.722,105.89,105.83,41.42430781]
[1644603596002,0.04099665,105.89,105.83,41.42430781]
[1644603596201,4.723,105.92,105.85,44.68648716]
[1644603596202,0.04099665,105.92,105.85,44.68648716]
[1644603596402,0.04099665,105.89,105.85,44.68648716]
[1644603596604,0.04099665,105.91,105.85,44.68648716]
[1644603596801,0.04099665,105.92,105.85,44.93648716]
[1644603597026,0.04099665,105.91,105.85,44.93648716]
[1644603597202,0.04099665,105.92,105.85,44.93648716]
[1644603598507,14.21119665,105.92,105.85,44.93648716]
[1644603598709,0.04099665,105.91,105.85,44.93648716]
[1644603598906,0.04099665,105.92,105.85,44.93648716]
[1644603599709,0.04099665,105.92,105.86,6.0]
[1644603600008,67.54909665,105.93,105.87,43.08449683]
[1644603600208,0.04099665,105.92,105.87,43.08449683]
[1644603600407,0.04099665,105.92,105.85,0.25]
[1644603600408,67.54909665,105.93,105.85,0.25]
[1644603600614,4.76299665,105.91,105.85,0.25]
[1644603600808,4.76299665,105.92,105.85,0.25]
[1644603601008,0.04099665,105.91,105.85,0.25]
[1644603601211,0.04099665,105.91,105.85,6.0]
[1644603601412,0.04099665,105.91,105.86,35.72881714]
[1644603601711,18.93279665,105.92,105.84,29.4988]
[1644603601909,4.722,105.9,105.84,4.723]
[1644603602109,7.14666456,105.91,105.84,4.723]
[1644603602312,2.38366791,105.9,105.84,4.723]
[1644603602511,4.722,105.89,105.84,4.723]
[1644603602810,18.8957,105.89,105.84,4.723]
[1644603603011,18.8957,105.89,105.83,46.95527105]
[1644603603213,18.93669665,105.89,105.83,46.95527105]
[1644603604812,18.93669665,105.89,105.83,47.20527105]
[1644603605013,4.76299665,105.89,105.83,47.20527105]
[1644603605820,0.04099665,105.89,105.83,47.20527105]
[1644603606017,18.93639665,105.9,105.83,47.20527105]
[1644603606217,0.04099665,105.89,105.83,47.20527105]
[1644603606517,18.93639665,105.9,105.83,47.20527105]
[1644603607218,18.93639665,105.9,105.82,28.4396]
[1644603607419,18.93639665,105.9,105.79,4.723]
[1644603607420,2.38366791,105.89,105.79,4.723]
[1644603607619,14.1774,105.86,105.78,4.724]
[1644603607820,4.725,105.85,105.78,4.724]
[1644603608018,0.04124841,105.85,105.79,6.0]
[1644603608219,0.04124841,105.86,105.81,45.20661623]
[1644603608424,0.04124841,105.87,105.81,45.20661623]
[1644603608619,22.9129,105.88,105.81,45.20661623]
[1644603608818,0.04124841,105.87,105.81,45.20661623]
[1644603609221,0.04124841,105.87,105.81,45.45661623]
[1644603609621,0.04124841,105.87,105.81,45.20661623]
[1644603609822,0.04124841,105.87,105.81,45.45661623]
[1644603611124,4.76524841,105.87,105.81,45.45661623]
[1644603612639,0.04124841,105.87,105.81,45.45661623]
[1644603613742,4.76524841,105.87,105.81,45.45661623]
[1644603615944,0.04124841,105.87,105.81,59.63011623]
[1644603616146,0.04124841,105.87,105.81,116.26011623]
[1644603616344,0.04124841,105.87,105.83,38.56891231]
[1644603616645,0.04124841,105.89,105.84,2.38366791]
[1644603616844,0.04124841,105.9,105.85,42.37019942]
[1644603617248,0.04124841,105.9,105.85,42.62019942]
[1644603618852,0.04124841,105.9,105.85,56.78869942]
[1644603619348,0.04124841,105.9,105.85,113.41869942]
[1644603619550,0.04124841,105.92,105.86,6.0]
[1644603619748,6.05724187,105.94,105.86,6.0]
[1644603619749,4.722,105.94,105.87,48.41978924]
[1644603619949,0.04124841,105.92,105.87,62.58538924]
[1644603620151,0.04124841,105.94,105.88,6.0]
[1644603620349,0.04124841,105.94,105.89,42.01147293]
[1644603620549,14.1653,105.95,105.89,42.01147293]
[1644603620748,0.04124841,105.94,105.89,42.26147293]
[1644603620950,0.04124841,105.95,105.89,42.26147293]
[1644603621151,4.76124841,105.96,105.89,42.26147293]
[1644603621750,18.92504841,105.96,105.89,42.26147293]
[1644603622150,0.04124841,105.96,105.9,67.35]
[1644603622355,4.76124841,105.97,105.9,81.7605]
[1644603622751,4.76124841,105.97,105.91,34.63273295]
[1644603623152,4.76124841,105.97,105.91,34.88273295]
[1644603624154,0.04124841,105.97,105.91,34.88273295]
[1644603624353,5.23431345,105.98,105.91,34.88273295]
[1644603624555,0.04124841,105.97,105.91,34.88273295]
[1644603624759,0.47406504,105.98,105.91,34.88273295]
[1644603625761,14.63546504,105.98,105.91,34.88273295]
[1644603627159,0.47406504,105.98,105.91,34.88273295]
[1644603627559,0.47406504,105.98,105.92,6.0]
[1644603627759,0.47406504,105.98,105.92,10.969]
[1644603628261,0.47406504,105.98,105.93,43.14876012]
[1644603628460,0.47406504,105.98,105.95,46.18176216]
[1644603628661,0.47406504,105.98,105.96,6.05439994]
[1644603628861,0.47406504,105.98,105.97,41.27190572]
[1644603630262,0.47406504,105.98,105.91,18.368]
[1644603630462,4.718,105.97,105.91,4.718]
[1644603630662,4.75924841,105.97,105.88,4.719]
[1644603630862,0.04124841,105.97,105.9,4.72]
[1644603631363,0.04124841,105.97,105.91,40.16770124]
[1644603631563,4.719,105.96,105.91,40.16770124]
[1644603631764,18.92444841,105.97,105.91,40.41770124]
[1644603631966,0.51531345,105.98,105.91,40.41770124]
[1644603632162,4.76024841,105.97,105.91,40.41770124]
[1644603632363,0.51531345,105.98,105.91,40.41770124]
[1644603632564,0.04124841,105.97,105.91,40.41770124]
[1644603632865,0.51531345,105.98,105.91,40.41770124]
[1644603634165,5.23431345,105.98,105.93,41.47461848]
[1644603634364,5.19306504,105.98,105.93,41.47461848]
[1644603635970,0.47406504,105.98,105.93,41.47461848]
[1644603638470,0.47406504,105.98,105.93,41.72461848]
[1644603639471,0.47406504,105.98,105.93,98.35461848]
[1644603640572,18.8757,106.01,105.93,98.35461848]
[1644603640774,0.04146614,106.0,105.93,98.35461848]
[1644603641275,0.04146614,106.0,105.93,112.51241848]
[1644603641475,4.718,105.99,105.94,4.718]
[1644603641675,4.718,105.99,105.95,37.91369212]
[1644603641874,4.75946614,106.0,105.95,37.91369212]
[1644603642075,18.91516614,106.01,105.95,38.16369212]
[1644603642277,18.91516614,106.01,105.95,37.91369212]
[1644603642475,21.29883405,106.01,105.95,37.91369212]
[1644603643777,16.58283405,106.01,105.95,37.91369212]
[1644603645077,4.716,106.0,105.95,37.91369212]
[1644603645476,18.8748,106.0,105.95,37.91369212]
[1644603646500,18.8748,106.0,105.92,14.1593]
[1644603646699,14.20226614,105.99,105.92,6.25]
[1644603646901,4.718,105.98,105.92,6.25]
[1644603647501,4.718,105.98,105.93,42.99344972]
[1644603647699,0.04146614,105.99,105.93,42.99344972]
[1644603647901,31.82023405,106.0,105.93,42.99344972]
[1644603648301,14.1613,105.98,105.93,42.99344972]
[1644603649200,33.15547592,106.0,105.93,43.24344972]
[1644603649400,31.82023405,106.0,105.93,43.24344972]
[1644603650702,14.1598,105.99,105.93,43.24344972]
[1644603650903,14.1598,105.99,105.93,47.96144972]
[1644603653407,18.8778,105.99,105.93,43.24344972]
[1644603654507,14.1598,105.99,105.93,43.24344972]
[1644603655007,14.1598,105.99,105.93,57.40204972]
[1644603655208,14.1598,105.99,105.93,43.24344972]
[1644603656708,14.1598,105.99,105.93,57.40204972]
[1644603658311,15.53480801,106.0,105.93,57.40204972]
[1644603658513,4.718,105.99,105.93,57.40204972]
[1644603658712,4.75946614,105.99,105.93,57.40204972]
[1644603659413,18.91876614,105.99,105.93,57.40204972]
[1644603661517,18.41876614,105.99,105.93,57.40204972]
[1644603662415,0.04146614,105.99,105.94,4.718]
[1644603662719,1.37670801,106.0,105.95,6.0]
[1644603662915,0.04146614,106.01,105.96,61.348]
[1644603663319,0.04146614,106.02,105.98,48.07866984]
[1644603663515,0.04146614,106.02,105.98,52.79466984]
[1644603663716,22.83856614,106.05,105.98,53.04466984]
[1644603663915,36.99066614,106.05,105.98,67.19526984]
[1644603665415,4.716,106.04,105.98,67.19526984]
[1644603665816,4.75746614,106.04,105.98,67.19526984]
[1644603666015,18.91016614,106.04,105.98,52.79466984]
[1644603666415,21.29383405,106.04,105.98,52.79466984]
[1644603666618,21.29383405,106.04,105.98,4.716]
[1644603667622,21.29383405,106.04,105.98,47.65506698]
[1644603668519,25.01936935,106.04,105.98,42.93906698]
[1644603668918,25.01936935,106.04,105.95,18.8723]
[1644603669118,25.01936935,106.04,105.96,6.0]
[1644603669119,0.04146614,106.03,105.96,6.0]
[1644603669419,14.1576,106.01,105.95,6.0]
[1644603669619,4.716,106.0,105.95,6.0]
[1644603669820,4.716,106.0,105.95,52.65724803]
[1644603670823,4.716,106.0,105.95,67.06384803]
[1644603671019,4.716,106.0,105.95,66.81384803]
[1644603671219,14.19906614,106.01,105.95,66.81384803]
[1644603673219,0.04146614,106.01,105.95,67.06384803]
[1644603674323,14.19786614,106.01,105.95,67.06384803]
[1644603675121,14.19786614,106.01,105.95,66.81384803]
[1644603675525,18.91386614,106.01,105.95,66.81384803]
[1644603675923,4.75746614,106.01,105.95,66.81384803]
[1644603676123,0.04146614,106.01,105.96,4.716]
[1644603676323,0.04146614,106.01,105.96,14.1543]
[1644603676930,0.04146614,106.01,105.97,39.00126312]
[1644603677227,18.8714,106.02,105.97,39.00126312]
[1644603679631,14.1554,106.02,105.97,39.00126312]
[1644603682632,14.1554,106.02,105.96,18.8703]
[1644603682833,18.8726,106.01,105.96,4.716]
[1644603683032,18.8726,106.01,105.95,6.25]
[1644603683632,18.8726,106.01,105.95,45.39271753]
[1644603685136,18.8726,106.01,105.95,45.14271753]
[1644603688254,18.8726,106.01,105.95,6.0]
[1644603688453,18.8726,106.01,105.94,4.716]
[1644603688652,21.25626791,106.01,105.93,1.34351608]
[1644603688855,21.25626791,106.01,105.92,1.34351608]
[1644603689253,15.03107395,106.0,105.92,39.2762245]
[1644603689454,14.1617,105.98,105.92,39.2762245]
[1644603690258,14.1617,105.98,105.92,1.34351608]
[1644603691257,29.37701425,105.98,105.92,1.34351608]
[1644603691658,4.719,105.97,105.91,1.34351608]
[1644603691955,14.1635,105.96,105.91,1.34351608]
[1644603692356,17.5659542,105.96,105.91,1.34351608]
[1644603692759,17.5659542,105.96,105.9,6.06251608]
[1644603692957,17.5659542,105.96,105.9,1.34351608]
[1644603693560,17.5659542,105.96,105.89,49.51566211]
[1644603693762,4.72,105.95,105.89,44.79566211]
[1644603693959,18.8852,105.95,105.89,44.79566211]
[1644603694361,18.8852,105.95,105.9,1.34351608]
[1644603695261,18.8852,105.95,105.89,1.34351608]
[1644603698263,13.90404953,105.94,105.89,1.34351608]
[1644603698469,4.72,105.93,105.88,1.34351608]
[1644603699064,4.72,105.93,105.87,6.06351608]
[1644603699364,4.71371892,105.92,105.87,1.34351608]
[1644603699665,4.721,105.94,105.87,1.34351608]
[1644603699863,49.61216791,105.95,105.87,1.34351608]
[1644603700063,37.1905,105.96,105.87,6.06351608]
[1644603700266,23.5405,105.96,105.87,6.31351608]
[1644603700664,40.56324699,105.96,105.88,42.38743187]
[1644603701068,40.56324699,105.96,105.88,43.98094795]
[1644603701265,40.56324699,105.96,105.89,6.0]
[1644603701465,40.56324699,105.96,105.88,67.41534795]
[1644603702466,40.56324699,105.96,105.88,67.16534795]
[1644603702668,4.72,105.95,105.88,67.16534795]
[1644603702868,4.72,105.95,105.88,65.82183187]
[1644603703067,1.59502146,105.94,105.88,23.4344]
[1644603703269,4.72,105.93,105.88,23.4344]
[1644603703468,4.72,105.93,105.87,57.97351608]
[1644603703672,4.72,105.93,105.87,1.34351608]
[1644603704169,17.02274699,105.92,105.87,1.34351608]
[1644603704570,14.1684,105.93,105.86,47.39150208]
[1644603704771,4.721,105.92,105.86,1.59351608]
[1644603705271,4.721,105.95,105.86,1.59351608]
[1644603705774,13.50417837,105.94,105.86,44.5460278]
[1644603705973,4.721,105.93,105.86,44.5460278]
[1644603706473,14.1687,105.92,105.86,44.5460278]
[1644603706674,14.1687,105.92,105.86,49.2670278]
[1644603706873,14.1687,105.92,105.86,49.0170278]
[1644603707272,14.1687,105.92,105.86,47.67351172]
[1644603708876,14.1687,105.92,105.86,49.0170278]
[1644603710073,14.1687,105.92,105.86,44.2960278]
[1644603711175,14.1687,105.92,105.86,42.95251172]
[1644603711378,14.1687,105.92,105.86,44.2960278]
[1644603713679,43.0803,105.93,105.86,115.0935278]
[1644603713881,38.3593,105.93,105.86,120.0645278]
[1644603714079,38.3593,105.93,105.86,115.3435278]
[1644603714080,4.721,105.92,105.86,115.3435278]
[1644603714482,38.3593,105.93,105.87,4.721]
[1644603714681,38.3593,105.93,105.87,26.23091608]
[1644603714882,24.1918,105.93,105.87,26.48091608]
[1644603715581,18.8869,105.94,105.87,83.11091608]
[1644603715781,4.721,105.96,105.87,83.11091608]
[1644603715982,38.1057,105.97,105.89,1.34351608]
[1644603716182,23.9439,105.97,105.91,14.1609]
[1644603716682,24.4323,105.99,105.92,39.03669635]
[1644603717080,24.4323,105.99,105.92,39.28669635]
[1644603717782,38.5918,105.99,105.92,53.44619635]
[1644603718481,38.5918,105.99,105.92,39.03669635]
[1644603718690,40.97546791,105.99,105.92,39.03669635]
[1644603719084,40.97546791,105.99,105.91,14.161]
[1644603719085,14.1617,105.97,105.91,14.161]
[1644603720085,14.1617,105.97,105.91,54.76313014]
[1644603720486,4.719,105.96,105.91,54.76313014]
[1644603720691,14.1609,105.98,105.91,54.76313014]
[1644603721287,14.1609,105.98,105.91,111.39313014]
[1644603724692,4.719,105.97,105.91,111.64313014]
[1644603724889,38.5917,105.99,105.91,111.64313014]
[1644603725189,38.5917,105.99,105.93,14.1589]
[1644603727990,4.718,105.98,105.93,14.1589]
[1644603728192,4.718,105.98,105.92,14.1598]
[1644603728413,38.5917,105.99,105.92,18.8788]
[1644603728614,4.718,105.98,105.92,18.8788]